bitfinex-derivatives/quotes_ETHF0:USTF0_20240910
["timestamp","ask_amount","ask_price","bid_price","bid_amount"]
[1725952513352,1.11663682,2346.2,2346.1,2.02391]
[1725952513557,1.11663682,2346.2,2346.1,4.13332418]
[1725952513761,1.11663682,2346.2,2346.1,5.46569388]
[1725952513955,1.11663682,2346.2,2346.1,5.68063368]
[1725952514159,0.21318749,2346.4,2346.1,6.37026341]
[1725952514160,1.67543083,2346.4,2346.1,6.37026341]
[1725952514354,1.11660705,2346.4,2346.2,5.41030925]
[1725952514558,1.11660705,2346.6,2346.5,0.42614]
[1725952514769,1.11660705,2346.6,2346.5,44.29042589]
[1725952515161,1.11660705,2346.6,2346.5,44.65812589]
[1725952515362,1.11660705,2346.7,2346.6,0.42612]
[1725952515673,1.11660705,2346.7,2346.6,3.38823418]
[1725952516362,1.11660705,2346.7,2346.6,4.7203841]
[1725952516574,1.11660705,2346.7,2346.6,4.72006491]
[1725952516874,1.11660705,2346.7,2346.6,4.72006722]
[1725952517262,1.11660705,2346.7,2346.6,3.38791495]
[1725952517459,1.67491058,2346.7,2346.6,3.38791495]
[1725952517868,1.11634604,2346.7,2346.6,3.38791495]
[1725952518170,1.11634604,2346.7,2346.6,4.72005918]
[1725952520366,1.67491058,2346.8,2346.7,0.4261]
[1725952520663,1.67491058,2346.9,2346.7,2.15789495]
[1725952520863,1.11629385,2346.8,2346.7,0.4261]
[1725952521059,1.67491058,2346.8,2346.7,2.15779096]
[1725952521469,1.11627833,2346.8,2346.7,2.15779096]
[1725952521666,1.67491058,2346.8,2346.7,1.73169096]
[1725952521972,1.67491058,2346.8,2346.7,2.09789096]
[1725952522165,1.11630303,2346.8,2346.7,3.85608162]
[1725952522966,1.11630303,2346.8,2346.7,0.7923]
[1725952523168,1.11630303,2346.8,2346.7,3.85610601]
[1725952524575,1.11630303,2346.8,2346.7,3.85611294]
[1725952525270,1.11630303,2346.8,2346.7,2.52401644]
[1725952525667,1.11630303,2346.8,2346.7,3.85611518]
[1725952526074,1.11630303,2346.8,2346.7,2.15781644]
[1725952526276,1.11630303,2346.8,2346.7,2.15782068]
[1725952526472,1.67491058,2346.8,2346.7,2.15782068]
[1725952526676,1.67491058,2346.8,2346.7,0.4261]
[1725952526879,1.67491058,2346.8,2346.7,2.15788704]
[1725952527081,0.21314008,2346.8,2346.7,2.15788704]
[1725952527280,2.87390672,2346.8,2346.7,0.66607194]
[1725952527578,0.21314008,2346.8,2346.7,2.15792026]
[1725952527967,3.25799672,2346.9,2346.7,2.15792026]
[1725952528178,0.63924008,2346.8,2346.6,0.42612]
[1725952528372,1.6743803,2346.7,2346.5,42.7683]
[1725952528579,1.6743803,2346.7,2346.6,2.15790858]
[1725952529678,2.1004803,2346.7,2346.6,2.15790858]
[1725952529877,7.5920803,2346.7,2346.6,1.73178858]
[1725952530079,7.5920803,2346.7,2346.6,0.66607253]
[1725952530080,8.6573503,2346.7,2346.6,0.66607253]
[1725952530382,0.42614,2346.5,2346.4,1.1141152]
[1725952530677,0.42614,2346.5,2346.4,1.78029701]
[1725952530678,1.65614,2346.5,2346.4,1.78029701]
[1725952530879,5.91774,2346.5,2346.4,1.78029701]
[1725952531680,4.68774,2346.5,2346.4,1.78029701]
[1725952532373,4.68774,2346.5,2346.4,0.66618181]
[1725952532374,7.13559907,2346.5,2346.4,0.66618181]
[1725952532574,6.92241664,2346.5,2346.4,0.66618181]
[1725952532878,7.13559953,2346.5,2346.4,0.66618181]
[1725952533782,6.92241664,2346.5,2346.4,0.66618181]
[1725952534172,2.66081664,2346.5,2346.4,0.66618181]
[1725952534379,6.92241664,2346.5,2346.4,0.66618181]
[1725952534787,0.42616,2346.4,2346.2,1.65618]
[1725952535085,0.42616,2346.4,2346.3,0.66620521]
[1725952535989,0.42616,2346.4,2346.3,1.09238521]
[1725952536583,0.42616,2346.4,2346.3,0.66620521]
[1725952536885,3.04803,2346.6,2346.2,0.42619]
[1725952537386,0.42618,2346.3,2346.2,0.42619]
[1725952537575,3.04803,2346.6,2346.2,41.89242927]
[1725952537782,0.42617,2346.4,2346.2,41.22619]
[1725952538194,0.42617,2346.4,2346.3,0.42618]
[1725952538687,0.42617,2346.4,2346.3,1.09240702]
[1725952538990,0.42617,2346.4,2346.3,0.42618]
[1725952539292,4.68777,2346.4,2346.2,41.22619]
[1725952539490,0.42617,2346.4,2346.3,1.09238954]
[1725952539889,2.09957022,2346.4,2346.3,1.09238954]
[1725952540189,2.09957022,2346.4,2346.1,0.4262]
[1725952540190,0.4262,2346.2,2346.1,0.4262]
[1725952540399,1.5418853,2346.2,2346.1,1.09244529]
[1725952540690,1.5418853,2346.2,2346.1,41.89244529]
[1725952540901,2.3017853,2346.2,2346.1,41.89244529]
[1725952541491,2.7012853,2346.2,2346.1,41.89244529]
[1725952542099,0.7814,2346.2,2346.1,44.18845388]
[1725952542295,1.5418553,2346.4,2346.1,43.76225388]
[1725952542500,2.05152795,2346.5,2346.3,1.65618]
[1725952542501,1.8755853,2346.5,2346.3,1.65618]
[1725952542797,0.82566,2346.4,2346.3,1.65618]
[1725952542998,0.82566,2346.4,2346.3,3.38817306]
[1725952543390,1.9413453,2346.4,2346.3,3.38817306]
[1725952543595,1.9413453,2346.4,2346.3,2.32233118]
[1725952543795,0.3995,2346.4,2346.3,3.38816919]
[1725952543997,1.5151853,2346.4,2346.3,2.32233118]
[1725952544301,0.3995,2346.4,2346.3,2.32233118]
[1725952544997,1.9409523,2346.4,2346.3,2.32233118]
[1725952545199,1.5147923,2346.4,2346.3,2.70613118]
[1725952548701,1.5147923,2346.4,2346.3,3.77197881]
[1725952548702,0.3995,2346.4,2346.3,3.77197881]
[1725952548903,1.5147923,2346.4,2346.3,3.10582763]
[1725952549204,1.1152923,2346.4,2346.3,2.70612707]
[1725952549397,1.1152923,2346.4,2346.3,3.77199295]
[1725952549589,1.1152923,2346.4,2346.3,2.70612707]
[1725952552297,1.1152923,2346.4,2346.3,2.03998]
[1725952552501,1.1152923,2346.4,2346.3,2.70617479]
[1725952553606,1.1152923,2346.4,2346.3,3.7720657]
[1725952554107,0.80804,2346.5,2346.4,0.42616]
[1725952554296,2.48156795,2346.5,2346.4,1.09235479]
[1725952554698,1.51178142,2346.6,2346.4,1.73203689]
[1725952554903,1.51178142,2346.6,2346.5,2.32223676]
[1725952555103,1.93790142,2346.6,2346.5,1.09223676]
[1725952555307,2.49594795,2346.6,2346.5,1.09229317]
[1725952555501,2.49594795,2346.6,2346.5,0.42614]
[1725952555702,2.49594795,2346.6,2346.5,0.66616343]
[1725952556597,2.49594795,2346.6,2346.5,1.09230343]
[1725952557396,2.70911933,2346.6,2346.5,1.09230343]
[1725952557799,2.28299933,2346.6,2346.5,1.09230343]
[1725952558001,0.60947138,2346.6,2346.5,1.09230343]
[1725952558511,0.60947188,2346.6,2346.5,1.09230343]
[1725952558707,0.60947188,2346.6,2346.5,0.42614]
[1725952559009,1.03559188,2346.6,2346.5,0.42614]
[1725952559207,1.03559188,2346.6,2346.5,1.09230192]
[1725952561203,1.03559188,2346.6,2346.5,0.42614]
[1725952561403,0.60947188,2346.6,2346.5,1.09230567]
[1725952561602,2.07008454,2346.6,2346.5,2.1580554]
[1725952561803,2.07008454,2346.6,2346.5,1.09230567]
[1725952562403,1.1157857,2346.6,2346.5,1.09230567]
[1725952562603,1.1157857,2346.6,2346.5,2.15808699]
[1725952562795,1.1157857,2346.6,2346.5,2.92238699]
[1725952563406,1.1157857,2346.6,2346.5,8.41398699]
[1725952563606,1.5037857,2346.8,2346.7,0.4261]
[1725952563801,2.06178454,2346.8,2346.7,0.4261]
[1725952565607,2.48787454,2346.8,2346.7,1.73180523]
[1725952565806,2.48787454,2346.8,2346.7,2.15790523]
[1725952566006,2.48787454,2346.8,2346.7,1.73180523]
[1725952566306,1.02724674,2346.8,2346.7,2.15790523]
[1725952566509,2.48799377,2346.8,2346.7,2.15790523]
[1725952566705,2.06190377,2346.8,2346.7,0.4261]
[1725952566905,2.27505495,2346.8,2346.7,0.4261]
[1725952567409,1.67390377,2346.8,2346.7,0.4261]
[1725952568908,1.67390377,2346.8,2346.7,1.6561]
[1725952568909,1.11591501,2346.8,2346.7,1.6561]
[1725952569409,1.11591501,2346.8,2346.7,3.38786082]
[1725952570300,1.11591501,2346.8,2346.7,4.71994117]
[1725952570507,1.11591501,2346.8,2346.7,3.38786082]
[1725952570708,1.11591501,2346.8,2346.7,4.71995429]
[1725952571012,1.11591501,2346.8,2346.7,3.38786082]
[1725952572107,1.11591501,2346.8,2346.7,4.71994605]
[1725952572313,1.11591501,2346.8,2346.7,4.71993452]
[1725952572510,2.04380377,2346.9,2346.8,0.42609]
[1725952572704,1.48593335,2346.9,2346.8,2.15785082]
[1725952572905,1.48593258,2346.9,2346.8,3.89176339]
[1725952573107,2.04380377,2346.9,2346.8,2.95035082]
[1725952573609,1.11587597,2346.9,2346.8,4.18035082]
[1725952573812,2.04310377,2347.0,2346.9,0.42607]
[1725952574010,2.25622605,2347.0,2346.9,2.15783082]
[1725952574215,2.04310377,2347.0,2346.9,2.15783082]
[1725952574510,2.25623046,2347.0,2346.9,1.73169084]
[1725952574706,2.04310377,2347.0,2346.9,1.73169084]
[1725952575308,2.25622414,2347.0,2346.9,0.66606185]
[1725952576309,2.04310377,2347.0,2346.9,0.66606185]
[1725952576913,2.25622939,2347.0,2346.9,0.66606185]
[1725952577313,2.04310377,2347.0,2346.9,0.66606185]
[1725952577514,2.04310377,2347.0,2346.9,1.09213185]
[1725952580411,1.48446822,2347.0,2346.9,1.09213185]
[1725952581423,1.48446822,2347.0,2346.9,0.42607]
[1725952581617,1.48446822,2347.0,2346.9,1.09208754]
[1725952584827,1.48446822,2347.0,2346.9,0.42607]
[1725952585221,1.48446822,2347.0,2346.9,1.09207972]
[1725952585521,1.48448825,2347.0,2346.9,1.09207972]
[1725952587427,2.04310377,2347.0,2346.9,1.09207972]
[1725952588326,1.67390377,2347.0,2346.9,1.09207972]
[1725952588525,1.11540433,2347.1,2347.0,0.42605]
[1725952588731,1.11540433,2347.1,2347.0,2.15770118]
[1725952588921,1.11540433,2347.1,2347.0,2.15762782]
[1725952589227,1.11540433,2347.1,2347.0,1.09205972]
[1725952589821,1.11540433,2347.1,2347.0,2.1576127]
[1725952590221,1.11540433,2347.1,2347.0,1.09205972]
[1725952590425,1.11540433,2347.1,2347.0,2.1576095]
[1725952591027,1.11540433,2347.1,2347.0,1.09205972]
[1725952591426,1.11540433,2347.1,2347.0,0.42605]
[1725952591726,1.11540433,2347.1,2347.0,1.09201544]
[1725952593732,1.11540433,2347.1,2347.0,2.15755315]
[1725952594033,1.11540433,2347.1,2347.0,1.09201544]
[1725952596337,1.11540433,2347.1,2347.0,2.15758091]
[1725952596525,1.11540433,2347.1,2347.0,3.38758091]
[1725952596725,1.11540433,2347.1,2347.0,2.15758091]
[1725952596935,2.81230377,2347.2,2347.1,0.42603]
[1725952597234,3.02456574,2347.2,2347.1,1.09199544]
[1725952597433,1.35151014,2347.2,2347.1,1.09199544]
[1725952597636,1.1384,2347.2,2347.1,1.09199544]
[1725952597838,1.35151014,2347.2,2347.1,0.42603]
[1725952598226,1.35151014,2347.2,2347.1,1.09201353]
[1725952599237,1.1384,2347.2,2347.1,1.09201353]
[1725952599538,3.58271044,2347.2,2347.1,1.09201353]
[1725952599743,1.35151014,2347.2,2347.1,1.09201353]
[1725952600541,1.1384,2347.2,2347.1,1.09201353]
[1725952600835,2.81199076,2347.2,2347.1,1.09201353]
[1725952601041,3.0251009,2347.2,2347.1,1.09201353]
[1725952601347,3.0252036,2347.2,2347.1,0.42603]
[1725952601542,3.0252036,2347.2,2347.1,1.09197882]
[1725952601849,4.00871392,2347.2,2347.1,0.66594882]
[1725952603144,8.26951392,2347.2,2347.1,0.66594882]
[1725952603843,8.26951392,2347.2,2347.1,1.09197882]
[1725952604043,8.26951392,2347.2,2347.1,0.66594882]
[1725952604551,8.26951392,2347.2,2347.1,0.42603]
[1725952604742,4.00871392,2347.2,2347.1,1.09200577]
[1725952604943,8.26951392,2347.2,2347.1,1.09200577]
[1725952605339,8.26951392,2347.2,2347.1,0.42603]
[1725952605544,8.26951392,2347.2,2347.1,1.0920314]
[1725952606140,8.0564103,2347.2,2347.1,2.15763341]
[1725952606334,8.26953071,2347.2,2347.1,2.15763341]
[1725952606839,6.03833041,2347.2,2347.1,1.0920314]
[1725952607041,10.93145994,2347.2,2347.1,1.0920314]
[1725952607642,10.93145994,2347.2,2347.1,1.73160283]
[1725952608148,0.42606,2347.0,2346.6,0.3972]
[1725952608347,3.40572263,2346.9,2346.8,0.42608]
[1725952608543,3.19277304,2346.9,2346.8,3.48994813]
[1725952608845,3.61884304,2346.9,2346.8,1.73175155]
[1725952609743,1.38469041,2346.9,2346.8,1.73175155]
[1725952611140,1.3847116,2346.9,2346.8,1.73175155]
[1725952611347,1.3847116,2346.9,2346.7,0.42609]
[1725952611647,2.44751372,2346.8,2346.7,0.42609]
[1725952611840,2.44751372,2346.8,2346.7,3.49000072]
[1725952613345,1.88889501,2346.8,2346.7,4.72000072]
[1725952613643,2.61017212,2346.9,2346.8,0.42609]
[1725952613847,2.82330081,2346.9,2346.8,2.15786559]
[1725952614038,2.82330081,2346.9,2346.8,3.48993486]
[1725952614238,3.18940081,2346.9,2346.8,3.48993486]
[1725952615646,0.95502869,2346.9,2346.8,3.48993486]
[1725952615843,3.18940081,2346.9,2346.8,3.48993486]
[1725952616148,3.18939691,2346.9,2346.8,3.48993486]
[1725952618443,0.95502479,2346.9,2346.8,3.48993486]
[1725952618645,2.97658329,2346.9,2346.8,3.48993486]
[1725952618849,3.18970808,2346.9,2346.8,3.48993486]
[1725952619240,2.82360808,2346.9,2346.8,3.48993486]
[1725952619442,2.44780808,2346.9,2346.8,3.48993486]
[1725952619846,2.23468329,2346.9,2346.8,3.48993486]
[1725952620051,2.44780808,2346.9,2346.8,3.48993486]
[1725952620243,2.23468329,2346.9,2346.8,3.48993486]
[1725952620445,2.23468329,2347.0,2346.9,0.42607]
[1725952620645,2.44780705,2347.0,2346.9,3.48991486]
[1725952620848,2.44780705,2347.0,2346.9,0.42607]
[1725952621049,2.44780705,2347.0,2346.9,3.48970864]
[1725952621655,2.23468329,2347.0,2346.9,3.48970864]
[1725952621956,2.44780705,2347.0,2346.9,3.48970864]
[1725952622159,0.21312376,2347.0,2346.9,3.48970864]
[1725952622357,2.23438769,2347.0,2346.9,3.48970864]
[1725952622557,2.44754056,2347.0,2346.9,3.48968106]
[1725952622750,0.21312376,2347.0,2346.9,2.15769184]
[1725952623467,0.21312376,2347.0,2346.9,2.15770887]
[1725952623953,2.23441495,2347.0,2346.9,2.15770887]
[1725952624157,3.54889078,2347.1,2347.0,0.42605]
[1725952624358,3.54889078,2347.1,2347.0,2.15768887]
[1725952624557,5.88115838,2347.1,2347.0,2.15768887]
[1725952624963,3.08804619,2347.1,2347.0,2.15768887]
[1725952625353,3.54929404,2347.1,2347.0,2.15768887]
[1725952625560,5.88114023,2347.1,2347.0,2.15768887]
[1725952626853,6.30717023,2347.1,2347.0,1.73163887]
[1725952627371,6.30717023,2347.1,2347.0,2.15768887]
[1725952627573,6.30717023,2347.1,2347.0,1.73163887]
[1725952627775,6.30717023,2347.1,2347.0,2.15768887]
[1725952628074,5.88114023,2347.1,2347.0,2.15768887]
[1725952628476,5.88123238,2347.1,2347.0,2.15768887]
[1725952628671,3.08804619,2347.1,2347.0,2.15768887]
[1725952628968,3.54933622,2347.1,2347.0,2.15768887]
[1725952629168,5.88118241,2347.1,2347.0,2.15768887]
[1725952629566,5.88119773,2347.1,2347.0,2.15768887]
[1725952629763,5.88119773,2347.1,2347.0,1.09207884]
[1725952629968,5.88119773,2347.1,2347.0,2.15772499]
[1725952630473,2.44746917,2347.1,2347.0,3.48963962]
[1725952630777,1.67567334,2347.1,2347.0,5.83294106]
[1725952631070,1.67567334,2347.1,2347.0,7.00504106]
[1725952632368,1.67567334,2347.1,2347.0,11.26584106]
[1725952633075,1.67567334,2347.1,2347.0,8.20225144]
[1725952633277,1.67567334,2347.1,2347.0,11.2655399]
[1725952633577,1.67567334,2347.1,2347.0,10.15223846]
[1725952634168,1.67567334,2347.1,2347.0,11.2655399]
[1725952634363,1.11680255,2347.1,2347.0,11.2655399]
[1725952635375,1.11680255,2347.1,2347.0,10.15223846]
[1725952635780,1.67567334,2347.1,2347.0,10.15223846]
[1725952636667,1.67567334,2347.2,2347.0,10.15223846]
[1725952636872,1.67567334,2347.2,2347.1,3.48931846]
[1725952637779,1.09408081,2347.2,2347.1,14.81520846]
[1725952637978,1.11649685,2347.5,2347.3,0.426]
[1725952638174,1.11640509,2347.5,2347.4,5.49256846]
[1725952638376,1.11640509,2347.5,2347.4,50.92946846]
[1725952638882,1.11640509,2347.5,2347.4,51.14730826]
[1725952639272,1.11640509,2347.5,2347.4,49.41568956]
[1725952639581,1.11640509,2347.5,2347.4,49.81519049]
[1725952639780,1.11640509,2347.5,2347.4,51.14685989]
[1725952640077,0.21306725,2347.6,2347.4,42.53117069]
[1725952640280,0.21306725,2347.6,2347.4,40.8]
[1725952640281,0.4016,2347.5,2347.4,40.8]
[1725952640478,0.61467308,2347.5,2347.4,41.89188695]
[1725952640679,2.23434172,2347.6,2347.5,0.42596]
[1725952640883,2.60824172,2347.7,2347.5,3.76735775]
[1725952641080,2.60824172,2347.7,2347.6,0.66590695]
[1725952641373,2.82131611,2347.7,2347.6,0.66580424]
[1725952641779,2.82131611,2347.7,2347.6,0.66585523]
[1725952641979,2.82131611,2347.7,2347.5,2.03616]
[1725952642181,0.21307439,2347.6,2347.5,2.03616]
[1725952642377,2.60824172,2347.7,2347.5,2.03616]
[1725952642682,2.60824172,2347.7,2347.6,0.66583271]
[1725952642876,2.82130949,2347.7,2347.5,2.03616]
[1725952643072,0.21306896,2347.6,2347.5,2.03616]
[1725952643279,2.60824172,2347.7,2347.6,0.42594]
[1725952643280,0.3739,2347.7,2347.6,0.42594]
[1725952643580,1.48889697,2347.7,2347.6,1.09178873]
[1725952643777,1.48889697,2347.7,2347.6,2.15703348]
[1725952644185,0.3739,2347.7,2347.6,2.15703348]
[1725952644782,1.48889697,2347.7,2347.6,1.09178873]
[1725952647084,0.3739,2347.7,2347.6,1.09178873]
[1725952647987,1.48889697,2347.7,2347.6,1.09178873]
[1725952648482,1.48889697,2347.7,2347.6,0.42594]
[1725952649184,1.48889697,2347.7,2347.4,40.8]
[1725952649387,1.50079697,2347.6,2347.5,1.09178966]
[1725952649681,0.3858,2347.6,2347.5,0.66582966]
[1725952651388,0.3858,2347.6,2347.5,1.09178966]
[1725952651585,0.3858,2347.6,2347.5,0.42596]
[1725952651992,0.3858,2347.6,2347.4,0.42597]
[1725952652289,1.91525697,2347.5,2347.3,0.42599]
[1725952652686,0.3839,2347.4,2347.3,0.64180752]
[1725952652987,0.3839,2347.4,2347.3,0.42599]
[1725952653292,0.3839,2347.4,2347.3,1.3035889]
[1725952653495,0.3839,2347.4,2347.3,1.6685889]
[1725952654500,0.3839,2347.4,2347.3,1.09184059]
[1725952654786,1.49889697,2347.4,2347.2,42.456]
[1725952655093,0.3909,2347.3,2347.2,42.456]
[1725952655493,0.3909,2347.3,2347.2,43.12191585]
[1725952656290,0.3909,2347.3,2347.2,41.89191585]
[1725952657290,0.3839,2347.4,2347.3,0.426]
[1725952657502,0.3839,2347.4,2347.3,1.30046844]
[1725952657793,0.3839,2347.4,2347.3,2.53046844]
[1725952658495,0.3839,2347.4,2347.3,1.656]
[1725952658701,0.3839,2347.4,2347.3,2.32188196]
[1725952660297,1.49889697,2347.4,2347.3,2.32188196]
[1725952662292,1.92487697,2347.4,2347.3,0.66588196]
[1725952662496,1.92487697,2347.4,2346.9,0.33770418]
[1725952662497,0.42601,2347.3,2347.0,0.42604]
[1725952662690,0.3839,2347.4,2347.1,0.66598479]
[1725952662691,1.54073061,2347.2,2347.1,0.66598479]
[1725952662890,0.42602,2347.2,2347.1,0.66598479]
[1725952663493,0.42601,2347.3,2347.1,0.66598479]
[1725952663693,0.3692,2347.2,2347.0,1.65605]
[1725952663892,1.49949249,2347.1,2347.0,1.65605]
[1725952664093,1.88819249,2347.1,2347.0,2.32203692]
[1725952664397,0.7734,2347.1,2347.0,3.38760636]
[1725952664699,0.7734,2347.1,2347.0,3.77120636]
[1725952664896,0.7734,2347.1,2347.0,2.03965]
[1725952665100,0.7734,2347.1,2347.0,44.5710647]
[1725952666906,1.11479249,2347.2,2347.1,0.42603]
[1725952667091,2.23434172,2347.5,2347.2,0.42601]
[1725952667092,1.48616364,2347.3,2347.2,0.42601]
[1725952667291,1.48616364,2347.3,2347.2,2.32193873]
[1725952667892,0.3712,2347.3,2347.2,2.32193873]
[1725952669199,0.3712,2347.3,2347.2,1.89592873]
[1725952669804,0.3712,2347.3,2347.2,0.66592873]
[1725952670692,1.48654312,2347.3,2347.2,0.66592873]
[1725952670900,1.48654312,2347.3,2347.2,1.09193873]
[1725952671301,0.3712,2347.3,2347.2,0.42601]
[1725952671610,0.3712,2347.3,2347.2,1.09193797]
[1725952672910,0.3712,2347.3,2347.2,2.15741312]
[1725952674806,0.3712,2347.3,2347.2,2.15741142]
[1725952675304,0.3712,2347.3,2347.2,3.38741142]
[1725952675611,2.62344172,2347.4,2347.2,4.17231142]
[1725952675820,2.62344172,2347.4,2347.3,1.73140095]
[1725952675821,3.01884172,2347.4,2347.3,1.73140095]
[1725952676110,3.23193625,2347.4,2347.3,1.73140591]
[1725952676296,3.23193625,2347.4,2347.3,1.09192362]
[1725952676502,3.23193625,2347.4,2347.3,1.73140131]
[1725952678109,3.23193437,2347.4,2347.3,1.73140131]
[1725952680106,3.23193437,2347.4,2347.3,0.66592362]
[1725952680307,3.23193437,2347.4,2347.3,1.73142724]
[1725952680611,3.23193437,2347.4,2347.3,0.66592362]
[1725952681601,3.23193437,2347.4,2347.3,1.09192362]
[1725952681800,9.14791437,2347.4,2347.3,1.73141977]
[1725952682105,11.80829281,2347.4,2347.3,0.66592362]
[1725952682607,0.42603,2347.1,2347.0,0.42604]
[1725952682907,2.23275436,2347.1,2347.0,1.09202362]
[1725952683115,2.44593224,2347.1,2347.0,1.09202362]
[1725952683307,3.21073224,2347.1,2347.0,1.09202362]
[1725952684015,0.21309265,2347.1,2347.0,3.38756676]
[1725952684214,1.11618922,2347.2,2347.1,0.42603]
[1725952684508,1.11618922,2347.2,2347.1,5.10538483]
[1725952685305,1.11618922,2347.3,2347.2,0.42601]
[1725952685505,1.11618922,2347.3,2347.2,3.48946483]
[1725952686815,0.7868,2347.4,2347.2,3.48946483]
[1725952687016,3.2327333,2347.4,2347.3,1.73152676]
[1725952687211,3.2327333,2347.4,2347.1,2.04192]
[1725952687413,0.21309465,2347.3,2347.2,1.06547369]
[1725952687715,3.21694296,2347.3,2347.2,0.66592105]
[1725952688013,9.83141129,2347.3,2347.2,0.66592105]
[1725952688204,9.40541129,2347.3,2346.8,42.45608]
[1725952688406,2.23267094,2347.0,2346.9,1.73164096]
[1725952688601,2.44576559,2347.0,2346.9,1.73164096]
[1725952688805,3.56106559,2347.0,2346.9,0.66598881]
[1725952689409,3.56106559,2347.0,2346.9,1.09205881]
[1725952690005,3.56106559,2347.0,2346.9,1.09212452]
[1725952690515,1.32839465,2347.0,2346.9,2.15774743]
[1725952690829,3.56106559,2347.0,2346.9,1.09212452]
[1725952692119,1.32839465,2347.0,2346.9,2.15774876]
[1725952692513,0.95739465,2347.0,2346.9,2.15774876]
[1725952692816,0.7443,2347.0,2346.9,2.15774876]
[1725952693115,0.7443,2347.0,2346.9,0.42607]
[1725952693305,0.7443,2347.0,2346.9,2.15767783]
[1725952694815,0.95742238,2347.0,2346.9,2.15767783]
[1725952695015,0.7443,2347.0,2346.9,2.15767783]
[1725952695219,0.95741865,2347.0,2346.9,2.15767783]
[1725952695519,0.95741898,2347.0,2346.9,2.15767783]
[1725952696015,3.19008992,2347.0,2346.9,2.15767783]
[1725952696515,3.19008992,2347.0,2346.9,2.15775588]
[1725952697320,0.95741898,2347.0,2346.9,2.15775588]
[1725952698331,3.19008992,2347.0,2346.9,2.15775588]
[1725952698718,3.19008992,2347.0,2346.9,1.73168588]
[1725952699221,3.19008992,2347.0,2346.9,2.15775588]
[1725952699617,3.19008992,2347.0,2346.9,0.42607]
[1725952699618,0.95741898,2347.0,2346.9,0.42607]
[1725952699925,0.95741898,2347.0,2346.9,2.1577088]
[1725952701118,0.95742263,2347.0,2346.9,2.1577088]
[1725952701322,3.19009357,2347.0,2346.9,2.1577088]
[1725952702124,6.87427263,2347.0,2346.9,0.66601492]
[1725952702424,0.95742263,2347.0,2346.9,1.09208492]
[1725952702717,2.97679175,2347.0,2346.9,1.09208492]
[1725952702920,3.18991438,2347.0,2346.9,2.15772395]
[1725952703115,3.18991438,2347.0,2346.9,1.09209075]
[1725952703321,2.25495947,2347.0,2346.9,3.75652228]
[1725952703511,1.67433684,2347.0,2346.9,4.12552228]
[1725952703710,0.3812,2347.2,2346.9,10.3574053]
[1725952703711,2.07203684,2347.2,2346.9,10.3574053]
[1725952703921,1.11610904,2347.1,2347.0,3.48957383]
[1725952704523,1.11610904,2347.1,2347.0,13.75037383]
[1725952704719,1.11610904,2347.3,2347.0,17.77750474]
[1725952704919,1.11610904,2347.3,2347.2,0.42601]
[1725952705120,1.11610904,2347.3,2347.2,4.71953383]
[1725952705315,1.11610805,2347.3,2347.2,8.97953383]
[1725952705529,1.67433684,2347.3,2347.2,8.97953383]
[1725952705834,1.67433684,2347.3,2347.2,3.48947617]
[1725952706031,1.67433684,2347.3,2347.1,0.42602]
[1725952706224,2.86055684,2347.2,2346.9,2.51232222]
[1725952706421,1.67433684,2347.1,2347.0,3.4894538]
[1725952706614,1.67433684,2347.1,2347.0,2.15755561]
[1725952706615,1.88745303,2347.1,2347.0,2.15755561]
[1725952706920,1.88745303,2347.1,2347.0,1.73150561]
[1725952707229,0.21311619,2347.1,2347.0,1.73150561]
[1725952707522,2.44560794,2347.1,2347.0,1.73150561]
[1725952708518,2.44560794,2347.1,2347.0,2.15755561]
[1725952709326,2.44560794,2347.1,2347.0,3.38764314]
[1725952709522,1.67436027,2347.1,2347.0,4.71951689]
[1725952709831,1.88747338,2347.1,2347.0,4.71951689]
[1725952710930,1.88747491,2347.1,2347.0,4.29346689]
[1725952711231,0.21311464,2347.1,2347.0,2.15764314]
[1725952713840,1.67435837,2347.2,2347.1,0.42603]
[1725952714027,1.67435837,2347.2,2347.1,8.98031102]
[1725952714224,1.1162074,2347.4,2347.1,11.64437675]
[1725952714531,1.1162074,2347.4,2347.3,1.656]
[1725952714734,1.88742876,2347.5,2347.4,0.42598]
[1725952714735,1.67435837,2347.5,2347.4,0.42598]
[1725952715030,2.44556138,2347.5,2347.4,2.55727314]
[1725952715240,2.4455743,2347.5,2347.4,2.55727314]
[1725952715726,2.65845175,2347.5,2347.4,1.06541782]
[1725952715927,2.44557229,2347.5,2347.4,0.66588614]
[1725952716125,2.44557229,2347.5,2347.4,2.39717757]
[1725952716627,0.21308054,2347.5,2347.4,2.39717757]
[1725952716930,2.44557229,2347.5,2347.4,1.33176473]
[1725952717536,2.44557229,2347.5,2347.4,1.75774473]
[1725952717724,2.87153229,2347.5,2347.4,1.33176473]
[1725952717928,2.87153229,2347.5,2347.4,0.66587859]
[1725952718822,2.84677229,2347.5,2347.4,0.42598]
[1725952719325,2.84677229,2347.5,2347.4,1.09189537]
[1725952719933,0.61428054,2347.5,2347.4,2.1573014]
[1725952720136,0.61428054,2347.5,2347.4,1.09189537]
[1725952720325,0.61428054,2347.5,2347.4,2.15730071]
[1725952720631,0.4012,2347.5,2347.4,2.15730071]
[1725952720927,0.4012,2347.5,2347.4,1.09189537]
[1725952720928,1.04024013,2347.5,2347.4,1.09189537]
[1725952721139,0.61428013,2347.5,2347.4,2.15730707]
[1725952721932,0.4012,2347.5,2347.4,2.15730707]
[1725952722133,0.61428013,2347.5,2347.4,1.4913917]
[1725952722340,2.07481361,2347.5,2347.4,2.15724668]
[1725952722528,2.28789374,2347.5,2347.4,2.15724668]
[1725952722728,0.61428013,2347.5,2347.4,1.0918518]
[1725952722929,2.63369175,2347.5,2347.4,1.0918518]
[1725952723237,2.84677188,2347.5,2347.4,1.0918518]
[1725952723927,2.84677188,2347.5,2347.4,2.15728135]
[1725952724832,2.84677188,2347.5,2347.4,1.0918518]
[1725952725141,0.61428013,2347.5,2347.4,2.15724499]
[1725952725326,0.61428013,2347.5,2347.4,2.15725537]
[1725952725531,0.21308013,2347.5,2347.4,0.42598]
[1725952725732,3.06014175,2347.6,2347.4,2.15723754]
[1725952726033,3.05889694,2347.6,2347.5,1.05056828]
[1725952726235,3.27197726,2347.6,2347.5,1.42406828]
[1725952726543,2.28799632,2347.6,2347.5,2.91535311]
[1725952726836,2.28799252,2347.6,2347.5,2.91535311]
[1725952727228,0.61478032,2347.6,2347.5,2.91535311]
[1725952727430,2.07494566,2347.6,2347.5,2.91533818]
[1725952727629,2.28801206,2347.6,2347.5,1.85002828]
[1725952727930,0.6147664,2347.6,2347.5,1.85002828]
[1725952728330,2.84602334,2347.6,2347.5,1.85002828]
[1725952728526,0.6147664,2347.6,2347.5,1.85002828]
[1725952728731,0.6147664,2347.6,2347.5,1.85002603]
[1725952730036,2.07469371,2347.6,2347.5,1.85002603]
[1725952730243,2.28776011,2347.6,2347.5,1.85002603]
[1725952730738,2.28776011,2347.6,2347.3,0.54375251]